[Event "*** SCC Grand Prix: Titled Tuesday Blitz"]
[Site "Chess.com"]
[Date "2020.08.04"]
[Round "3"]
[White "XiaoKangZhong"]
[Black "YIYUKI"]
[Result "0-1"]
[WhiteElo "2415"]
[BlackElo "2291"]
[TimeControl "180+1"]
[EndTime "14:12:50 PDT"]
[Termination "YIYUKI won by resignation"]

1. e4 {[%clk 0:03:00.9]} 1... e5 {[%clk 0:02:58.6]} 2. Nf3 {[%clk 0:02:59]} 2...
Nc6 {[%clk 0:02:54.1]} 3. Bc4 {[%clk 0:02:59.1]} 3... Bc5 {[%clk 0:02:53.3]} 4.
c3 {[%clk 0:02:59]} 4... Nf6 {[%clk 0:02:52.4]} 5. d3 {[%clk 0:02:59.1]} 5... d6
{[%clk 0:02:51.7]} 6. Nbd2 {[%clk 0:02:58.6]} 6... a6 {[%clk 0:02:51.2]} 7. Bb3
{[%clk 0:02:58.5]} 7... Ba7 {[%clk 0:02:50.9]} 8. O-O {[%clk 0:02:57.8]} 8...
O-O {[%clk 0:02:50.2]} 9. h3 {[%clk 0:02:56.3]} 9... h6 {[%clk 0:02:49.5]} 10.
Bc2 {[%clk 0:02:55.9]} 10... Re8 {[%clk 0:02:49.7]} 11. Re1 {[%clk 0:02:56.2]}
11... Ne7 {[%clk 0:02:43.6]} 12. Nf1 {[%clk 0:02:55.2]} 12... Ng6 {[%clk
0:02:43.4]} 13. Ng3 {[%clk 0:02:55.6]} 13... d5 {[%clk 0:02:43.3]} 14. exd5
{[%clk 0:02:54]} 14... Qxd5 {[%clk 0:02:40.3]} 15. Ne4 {[%clk 0:02:45.9]} 15...
Qc6 {[%clk 0:02:33.4]} 16. Be3 {[%clk 0:02:42.2]} 16... Bxe3 {[%clk 0:02:32]}
17. Rxe3 {[%clk 0:02:41.5]} 17... Nxe4 {[%clk 0:02:30.4]} 18. dxe4 {[%clk
0:02:42.4]} 18... Nf4 {[%clk 0:02:30.1]} 19. Nh2 {[%clk 0:02:29.3]} 19... Qf6
{[%clk 0:02:17.4]} 20. Rg3 {[%clk 0:02:25.8]} 20... Be6 {[%clk 0:02:15.5]} 21.
Ng4 {[%clk 0:02:25.4]} 21... Bxg4 {[%clk 0:02:15.4]} 22. Qxg4 {[%clk 0:02:26.2]}
22... Rad8 {[%clk 0:02:12]} 23. Rd1 {[%clk 0:01:48.5]} 23... Rxd1+ {[%clk
0:02:09.4]} 24. Bxd1 {[%clk 0:01:49.4]} 24... Rd8 {[%clk 0:02:09.3]} 25. Bb3
{[%clk 0:01:49]} 25... Rd2 {[%clk 0:02:04.5]} 26. Rf3 {[%clk 0:01:43.4]} 26...
h5 {[%clk 0:01:44.7]} 27. Qc8+ {[%clk 0:01:39.3]} 27... Kh7 {[%clk 0:01:44.6]}
28. Qxc7 {[%clk 0:01:30.3]} 28... Qg5 {[%clk 0:01:33.2]} 29. g3 {[%clk
0:01:16.9]} 29... Nxh3+ {[%clk 0:01:24.5]} 30. Kg2 {[%clk 0:01:14.6]} 30... Nf4+
{[%clk 0:01:19.2]} 31. Rxf4 {[%clk 0:00:53.8]} 31... exf4 {[%clk 0:01:19.2]} 32.
Qxf4 {[%clk 0:00:54.7]} 32... Qxf4 {[%clk 0:01:12.3]} 33. gxf4 {[%clk
0:00:55.6]} 33... Kg6 {[%clk 0:01:03.8]} 34. Bd5 {[%clk 0:00:44.3]} 34... Rxb2
{[%clk 0:01:03.5]} 35. Kf3 {[%clk 0:00:43.4]} 35... f6 {[%clk 0:01:03.2]} 36.
Bb3 {[%clk 0:00:41.9]} 36... Rb1 {[%clk 0:01:00.2]} 37. Kg2 {[%clk 0:00:41]}
37... Re1 {[%clk 0:00:57.6]} 38. Kf3 {[%clk 0:00:40.6]} 38... Rg1 {[%clk
0:00:47.8]} 39. Bd5 {[%clk 0:00:37.1]} 39... h4 {[%clk 0:00:47.9]} 40. Be6
{[%clk 0:00:37.1]} 40... Kh5 {[%clk 0:00:43.7]} 41. Bc8 {[%clk 0:00:29.5]} 41...
b6 {[%clk 0:00:43.8]} 42. a4 {[%clk 0:00:27.9]} 42... a5 {[%clk 0:00:43.6]} 43.
c4 {[%clk 0:00:25]} 43... g5 {[%clk 0:00:43.6]} 44. fxg5 {[%clk 0:00:24.4]}
44... Kxg5 {[%clk 0:00:44.4]} 45. Ke3 {[%clk 0:00:22.1]} 45... Ra1 {[%clk
0:00:40.3]} 46. Bd7 {[%clk 0:00:21.6]} 46... Ra3+ {[%clk 0:00:39.8]} 47. Ke2
{[%clk 0:00:20.9]} 47... h3 {[%clk 0:00:39.8]} 48. Kf1 {[%clk 0:00:21.5]} 48...
Ra1+ {[%clk 0:00:38.5]} 49. Ke2 {[%clk 0:00:21.2]} 49... h2 {[%clk 0:00:39.4]}
50. f4+ {[%clk 0:00:19.5]} 50... Kxf4 {[%clk 0:00:38.3]} 0-1

[Event "*** SCC Grand Prix: Titled Tuesday Blitz"]
[Site "Chess.com"]
[Date "2020.08.04"]
[Round "3"]
[White "rasmussvane"]
[Black "12teen"]
[Result "1/2-1/2"]
[WhiteElo "2871"]
[BlackElo "2670"]
[TimeControl "180+1"]
[EndTime "14:12:57 PDT"]
[Termination "Game drawn by repetition"]

1. Nf3 {[%clk 0:03:00.9]} 1... b6 {[%clk 0:03:00.2]} 2. g3 {[%clk 0:03:00.5]}
2... Bb7 {[%clk 0:03:01.1]} 3. Bg2 {[%clk 0:03:00.5]} 3... d5 {[%clk 0:03:01.8]}
4. O-O {[%clk 0:03:01.1]} 4... Nf6 {[%clk 0:03:01.6]} 5. d4 {[%clk 0:03:00.8]}
5... e6 {[%clk 0:03:01.9]} 6. Ne5 {[%clk 0:03:01.3]} 6... Nbd7 {[%clk
0:03:01.9]} 7. c4 {[%clk 0:03:01.7]} 7... Bd6 {[%clk 0:02:55.6]} 8. Bf4 {[%clk
0:02:50.2]} 8... Qe7 {[%clk 0:02:43.3]} 9. Nc3 {[%clk 0:02:47.2]} 9... c6 {[%clk
0:02:40.5]} 10. e3 {[%clk 0:02:27]} 10... O-O {[%clk 0:02:37.8]} 11. Rc1 {[%clk
0:02:24.7]} 11... Rfc8 {[%clk 0:02:30.8]} 12. Nxd7 {[%clk 0:02:06.4]} 12... Qxd7
{[%clk 0:02:28.1]} 13. Be5 {[%clk 0:01:56.9]} 13... Ne8 {[%clk 0:02:18.7]} 14.
b3 {[%clk 0:01:41.3]} 14... f6 {[%clk 0:02:15]} 15. Bxd6 {[%clk 0:01:40.5]}
15... Nxd6 {[%clk 0:02:15.9]} 16. e4 {[%clk 0:01:15.2]} 16... dxc4 {[%clk
0:02:13.6]} 17. e5 {[%clk 0:01:15.3]} 17... Nf5 {[%clk 0:02:07.3]} 18. exf6
{[%clk 0:01:14.8]} 18... cxb3 {[%clk 0:01:48.3]} 19. fxg7 {[%clk 0:01:06.2]}
19... b2 {[%clk 0:01:34.8]} 20. Rc2 {[%clk 0:00:56.2]} 20... Qxd4 {[%clk
0:01:27.6]} 21. Qe2 {[%clk 0:00:56.3]} 21... Nxg7 {[%clk 0:01:10.8]} 22. Ne4
{[%clk 0:00:32.4]} 22... Rf8 {[%clk 0:00:56]} 23. Rxb2 {[%clk 0:00:29.5]} 23...
Ba6 {[%clk 0:00:55.3]} 24. Rd1 {[%clk 0:00:22.3]} 24... Bxe2 {[%clk 0:00:38.7]}
25. Rxd4 {[%clk 0:00:22.6]} 25... Bf3 {[%clk 0:00:38.1]} 26. Rd7 {[%clk
0:00:22.2]} 26... Bxe4 {[%clk 0:00:26.7]} 27. Bxe4 {[%clk 0:00:22]} 27... Rfd8
{[%clk 0:00:20.9]} 28. Rxd8+ {[%clk 0:00:07.3]} 28... Rxd8 {[%clk 0:00:21.8]}
29. Bxc6 {[%clk 0:00:08]} 29... Rd6 {[%clk 0:00:22.1]} 30. Be4 {[%clk
0:00:08.4]} 30... h6 {[%clk 0:00:22.3]} 31. Rc2 {[%clk 0:00:08.8]} 31... Rd7
{[%clk 0:00:17.8]} 32. Kg2 {[%clk 0:00:09.2]} 32... Kf7 {[%clk 0:00:17.8]} 33.
Kf3 {[%clk 0:00:09.5]} 33... Kf6 {[%clk 0:00:18]} 34. Ke3 {[%clk 0:00:08.6]}
34... Ne8 {[%clk 0:00:18.3]} 35. f4 {[%clk 0:00:06.1]} 35... Nd6 {[%clk
0:00:18.6]} 36. g4 {[%clk 0:00:06.3]} 36... b5 {[%clk 0:00:17.2]} 37. h4 {[%clk
0:00:06.5]} 37... Nc4+ {[%clk 0:00:17.5]} 38. Kf3 {[%clk 0:00:05.8]} 38... Nd2+
{[%clk 0:00:18]} 39. Ke3 {[%clk 0:00:06]} 39... Nc4+ {[%clk 0:00:18.4]} 40. Kf3
{[%clk 0:00:06.4]} 40... Nd2+ {[%clk 0:00:18.9]} 41. Ke3 {[%clk 0:00:06.3]}
41... Nc4+ {[%clk 0:00:19.2]} 1/2-1/2

[Event "*** SCC Grand Prix: Titled Tuesday Blitz"]
[Site "Chess.com"]
[Date "2020.08.04"]
[Round "3"]
[White "ailime26"]
[Black "ketster"]
[Result "0-1"]
[WhiteElo "1885"]
[BlackElo "2380"]
[TimeControl "180+1"]
[EndTime "14:12:59 PDT"]
[Termination "ketster won by resignation"]

1. e4 {[%clk 0:03:00.9]} 1... e5 {[%clk 0:02:59.3]} 2. Nf3 {[%clk 0:03:00.4]}
2... Nc6 {[%clk 0:02:59.3]} 3. Nc3 {[%clk 0:02:59.1]} 3... Nf6 {[%clk
0:02:58.3]} 4. d4 {[%clk 0:02:58.3]} 4... exd4 {[%clk 0:02:57.8]} 5. Nxd4 {[%clk
0:02:58]} 5... Bb4 {[%clk 0:02:58.3]} 6. Nxc6 {[%clk 0:02:52.5]} 6... bxc6
{[%clk 0:02:59.2]} 7. Bd3 {[%clk 0:02:41]} 7... d5 {[%clk 0:02:57.8]} 8. exd5
{[%clk 0:02:40.3]} 8... cxd5 {[%clk 0:02:56.6]} 9. O-O {[%clk 0:02:34.2]} 9...
O-O {[%clk 0:02:56.2]} 10. Bg5 {[%clk 0:02:33.2]} 10... c6 {[%clk 0:02:56]} 11.
Qf3 {[%clk 0:02:32]} 11... Bd6 {[%clk 0:02:55.8]} 12. Rfe1 {[%clk 0:02:23.1]}
12... Rb8 {[%clk 0:02:52.5]} 13. b3 {[%clk 0:02:22.4]} 13... Bb4 {[%clk
0:02:41.3]} 14. a3 {[%clk 0:02:14.6]} 14... Bxc3 {[%clk 0:02:38.4]} 15. Bxh7+
{[%clk 0:01:55.3]} 15... Kxh7 {[%clk 0:02:37.7]} 16. Qxc3 {[%clk 0:01:54.9]}
16... Ne4 {[%clk 0:02:11.7]} 17. Rxe4 {[%clk 0:01:28.5]} 17... Qxg5 {[%clk
0:02:10.4]} 18. Re3 {[%clk 0:01:28.2]} 18... Bd7 {[%clk 0:01:54.5]} 19. Rae1
{[%clk 0:01:22.7]} 19... Rfe8 {[%clk 0:01:50.6]} 20. Re5 {[%clk 0:01:17.6]}
20... Qf6 {[%clk 0:01:34]} 21. Qg3 {[%clk 0:00:55.3]} 21... Rxe5 {[%clk
0:01:30.1]} 22. Rxe5 {[%clk 0:00:53.7]} 22... Re8 {[%clk 0:01:30]} 23. Rh5+
{[%clk 0:00:40.8]} 23... Kg8 {[%clk 0:01:28.8]} 24. h3 {[%clk 0:00:39.6]} 24...
Bf5 {[%clk 0:01:14.5]} 25. c3 {[%clk 0:00:22.5]} 25... Bg6 {[%clk 0:01:10.6]}
26. Rh4 {[%clk 0:00:19]} 26... Be4 {[%clk 0:00:59.6]} 27. Rh5 {[%clk 0:00:14.9]}
27... g6 {[%clk 0:00:58.1]} 28. Rh6 {[%clk 0:00:13.7]} 28... Kg7 {[%clk
0:00:57.2]} 29. Rh5 {[%clk 0:00:13.4]} 29... Bc2 {[%clk 0:00:52.6]} 30. b4
{[%clk 0:00:12.5]} 30... Re1+ {[%clk 0:00:49.4]} 31. Kh2 {[%clk 0:00:12.5]}
31... Re2 {[%clk 0:00:48.8]} 32. f3 {[%clk 0:00:11.4]} 32... Qxc3 {[%clk
0:00:44.2]} 33. Rh4 {[%clk 0:00:10.9]} 33... Qe5 {[%clk 0:00:40.5]} 34. f4
{[%clk 0:00:10]} 34... Qf6 {[%clk 0:00:34.7]} 35. Rg4 {[%clk 0:00:06.8]} 35...
Be4 {[%clk 0:00:33.7]} 36. Rg5 {[%clk 0:00:06.4]} 36... Rxg2+ {[%clk 0:00:32.7]}
37. Qxg2 {[%clk 0:00:06.3]} 37... Bxg2 {[%clk 0:00:33.6]} 38. Kxg2 {[%clk
0:00:06.5]} 38... Qxf4 {[%clk 0:00:31]} 39. Rg3 {[%clk 0:00:07.4]} 39... Qd2+
{[%clk 0:00:29.9]} 0-1

[Event "*** SCC Grand Prix: Titled Tuesday Blitz"]
[Site "Chess.com"]
[Date "2020.08.04"]
[Round "3"]
[White "chess_rehab"]
[Black "Euge_chess"]
[Result "0-1"]
[WhiteElo "2287"]
[BlackElo "2046"]
[TimeControl "180+1"]
[EndTime "14:12:59 PDT"]
[Termination "Euge_chess won by checkmate"]

1. e4 {[%clk 0:03:00.9]} 1... e5 {[%clk 0:02:58.7]} 2. Nf3 {[%clk 0:03:00.3]}
2... Nc6 {[%clk 0:02:57.2]} 3. Bc4 {[%clk 0:02:59.7]} 3... Nf6 {[%clk
0:02:56.3]} 4. d4 {[%clk 0:02:56.1]} 4... exd4 {[%clk 0:02:55.3]} 5. O-O {[%clk
0:02:55.7]} 5... Nxe4 {[%clk 0:02:54.4]} 6. Nc3 {[%clk 0:02:55.3]} 6... d5
{[%clk 0:02:23]} 7. Nxd5 {[%clk 0:02:50.3]} 7... Be6 {[%clk 0:02:15.5]} 8. Re1
{[%clk 0:01:30.3]} 8... Bxd5 {[%clk 0:02:14]} 9. Bxd5 {[%clk 0:01:30]} 9... Qxd5
{[%clk 0:02:01.6]} 10. Ng5 {[%clk 0:01:29.9]} 10... O-O-O {[%clk 0:01:58.5]} 11.
Nxe4 {[%clk 0:01:12.1]} 11... f6 {[%clk 0:01:51.5]} 12. Ng3 {[%clk 0:01:06.9]}
12... Bb4 {[%clk 0:01:49.6]} 13. Bd2 {[%clk 0:01:05.5]} 13... Bxd2 {[%clk
0:01:43.1]} 14. Qxd2 {[%clk 0:01:06.4]} 14... Rhe8 {[%clk 0:01:39.3]} 15. Rxe8
{[%clk 0:01:00.9]} 15... Rxe8 {[%clk 0:01:38.8]} 16. Re1 {[%clk 0:01:01.6]}
16... Rxe1+ {[%clk 0:01:35.1]} 17. Qxe1 {[%clk 0:01:02.5]} 17... Qe5 {[%clk
0:01:33.4]} 18. Qd2 {[%clk 0:01:01.8]} 18... Ne7 {[%clk 0:01:30.1]} 19. h3
{[%clk 0:01:00]} 19... c5 {[%clk 0:01:28.4]} 20. a4 {[%clk 0:00:51.1]} 20... b6
{[%clk 0:01:17.7]} 21. a5 {[%clk 0:00:50.6]} 21... Nc6 {[%clk 0:01:14.6]} 22.
axb6 {[%clk 0:00:40.1]} 22... axb6 {[%clk 0:01:14.6]} 23. Qd3 {[%clk 0:00:39.5]}
23... Kb7 {[%clk 0:01:14.3]} 24. Qxh7 {[%clk 0:00:38.4]} 24... Qe1+ {[%clk
0:01:03.3]} 25. Kh2 {[%clk 0:00:36.3]} 25... Qe7 {[%clk 0:00:58.9]} 26. h4
{[%clk 0:00:27.8]} 26... Nb4 {[%clk 0:00:46.9]} 27. Nf5 {[%clk 0:00:24.1]} 27...
Qc7+ {[%clk 0:00:46.2]} 28. g3 {[%clk 0:00:24]} 28... Nxc2 {[%clk 0:00:40.7]}
29. Nxg7 {[%clk 0:00:21.7]} 29... Nb4 {[%clk 0:00:33.3]} 30. Qe4+ {[%clk
0:00:20.6]} 30... Ka7 {[%clk 0:00:28.8]} 31. Ne6 {[%clk 0:00:19.7]} 31... Qe7
{[%clk 0:00:24.7]} 32. h5 {[%clk 0:00:16.2]} 32... d3 {[%clk 0:00:21.7]} 33.
Nxc5 {[%clk 0:00:15.2]} 33... Qxc5 {[%clk 0:00:18.9]} 34. Qh7+ {[%clk
0:00:15.2]} 34... Ka6 {[%clk 0:00:17.7]} 35. h6 {[%clk 0:00:15.8]} 35... d2
{[%clk 0:00:17]} 36. Qg8 {[%clk 0:00:13.8]} 36... d1=Q {[%clk 0:00:15.3]} 37.
Qa8+ {[%clk 0:00:13.6]} 37... Kb5 {[%clk 0:00:14.5]} 38. Qe8+ {[%clk 0:00:14.1]}
38... Qc6 {[%clk 0:00:14.2]} 39. Qg6 {[%clk 0:00:10.6]} 39... Qdh1# {[%clk
0:00:13.4]} 0-1

[Event "*** SCC Grand Prix: Titled Tuesday Blitz"]
[Site "Chess.com"]
[Date "2020.08.04"]
[Round "3"]
[White "TST2014"]
[Black "dretch"]
[Result "1-0"]
[WhiteElo "2538"]
[BlackElo "2797"]
[TimeControl "180+1"]
[EndTime "14:13:06 PDT"]
[Termination "TST2014 won on time"]

1. d4 {[%clk 0:02:46]} 1... d5 {[%clk 0:02:59.5]} 2. c4 {[%clk 0:02:45.5]} 2...
c6 {[%clk 0:02:59.7]} 3. Nf3 {[%clk 0:02:45.2]} 3... Nf6 {[%clk 0:02:59.7]} 4.
Nc3 {[%clk 0:02:44.8]} 4... dxc4 {[%clk 0:02:59.4]} 5. a4 {[%clk 0:02:44.6]}
5... Bf5 {[%clk 0:02:58.7]} 6. Ne5 {[%clk 0:02:42.9]} 6... Nbd7 {[%clk
0:02:58.2]} 7. Nxc4 {[%clk 0:02:41.6]} 7... Nb6 {[%clk 0:02:58.4]} 8. Ne5 {[%clk
0:02:41]} 8... a5 {[%clk 0:02:55.5]} 9. g3 {[%clk 0:02:39.9]} 9... e6 {[%clk
0:02:51.9]} 10. Bg2 {[%clk 0:02:36.5]} 10... Bb4 {[%clk 0:02:51.6]} 11. O-O
{[%clk 0:02:34.5]} 11... O-O {[%clk 0:02:50.6]} 12. e3 {[%clk 0:02:34.2]} 12...
h6 {[%clk 0:02:50.7]} 13. Qe2 {[%clk 0:02:33.8]} 13... Bh7 {[%clk 0:02:50.7]}
14. Rd1 {[%clk 0:02:33.4]} 14... Qe7 {[%clk 0:02:48.4]} 15. Bd2 {[%clk 0:02:33]}
15... Rfd8 {[%clk 0:02:47.8]} 16. Be1 {[%clk 0:02:31.6]} 16... Nfd7 {[%clk
0:02:46.5]} 17. Nd3 {[%clk 0:02:24.5]} 17... e5 {[%clk 0:02:44.1]} 18. Nxb4
{[%clk 0:02:10.7]} 18... axb4 {[%clk 0:02:42.9]} 19. Na2 {[%clk 0:02:10.4]}
19... exd4 {[%clk 0:02:36.1]} 20. Rxd4 {[%clk 0:02:07.8]} 20... c5 {[%clk
0:02:35.6]} 21. Rdd1 {[%clk 0:01:49.9]} 21... Ne5 {[%clk 0:02:26.9]} 22. Rxd8+
{[%clk 0:01:43]} 22... Qxd8 {[%clk 0:02:24.2]} 23. a5 {[%clk 0:01:41.9]} 23...
Bd3 {[%clk 0:02:18.9]} 24. Qh5 {[%clk 0:01:39]} 24... Nbc4 {[%clk 0:02:11.8]}
25. b3 {[%clk 0:01:35.2]} 25... g6 {[%clk 0:01:18.8]} 26. Qxh6 {[%clk
0:01:28.5]} 26... Nxa5 {[%clk 0:01:18.7]} 27. Nc1 {[%clk 0:01:17.2]} 27... Bc2
{[%clk 0:01:02.8]} 28. Qf4 {[%clk 0:01:09.4]} 28... Nd3 {[%clk 0:00:58.7]} 29.
Nxd3 {[%clk 0:01:06.5]} 29... Bxd3 {[%clk 0:00:59.6]} 30. Rd1 {[%clk 0:01:02.7]}
30... Nxb3 {[%clk 0:00:57.5]} 31. Bf1 {[%clk 0:00:42.3]} 31... c4 {[%clk
0:00:52.9]} 32. Bxb4 {[%clk 0:00:40.8]} 32... Qd5 {[%clk 0:00:15.2]} 33. Bc3
{[%clk 0:00:37.2]} 33... Qe6 {[%clk 0:00:03.2]} 34. Qh4 {[%clk 0:00:32.3]} 34...
f6 {[%clk 0:00:02.7]} 35. Bxf6 {[%clk 0:00:31]} 35... Ra6 {[%clk 0:00:01.9]} 36.
Qh8+ {[%clk 0:00:27.2]} 36... Kf7 {[%clk 0:00:02.2]} 37. Qg7+ {[%clk 0:00:21.6]}
37... Ke8 {[%clk 0:00:02.3]} 38. Bg5 {[%clk 0:00:16.8]} 38... Rd6 {[%clk
0:00:01.5]} 39. Bh3 {[%clk 0:00:15]} 1-0

[Event "*** SCC Grand Prix: Titled Tuesday Blitz"]
[Site "Chess.com"]
[Date "2020.08.04"]
[Round "3"]
[White "keepitcool9499"]
[Black "pooh2012"]
[Result "1-0"]
[WhiteElo "2633"]
[BlackElo "2404"]
[TimeControl "180+1"]
[EndTime "14:13:11 PDT"]
[Termination "keepitcool9499 won by resignation"]

1. d4 {[%clk 0:03:00.9]} 1... Nf6 {[%clk 0:02:59.5]} 2. c4 {[%clk 0:03:01.8]}
2... e6 {[%clk 0:02:59.8]} 3. Nc3 {[%clk 0:03:01.1]} 3... Bb4 {[%clk 0:02:59.7]}
4. Bd2 {[%clk 0:03:00.8]} 4... O-O {[%clk 0:02:57.4]} 5. e3 {[%clk 0:02:59.7]}
5... d5 {[%clk 0:02:54.3]} 6. Nf3 {[%clk 0:02:55.1]} 6... b6 {[%clk 0:02:50.1]}
7. cxd5 {[%clk 0:02:53.1]} 7... exd5 {[%clk 0:02:49.6]} 8. Bd3 {[%clk
0:02:51.6]} 8... Bb7 {[%clk 0:02:44.5]} 9. O-O {[%clk 0:02:49.3]} 9... Nbd7
{[%clk 0:02:40.7]} 10. Rc1 {[%clk 0:02:43.3]} 10... a6 {[%clk 0:02:36.9]} 11.
Ne5 {[%clk 0:02:39.9]} 11... Bd6 {[%clk 0:02:33.4]} 12. f4 {[%clk 0:02:37.3]}
12... c5 {[%clk 0:02:27.9]} 13. Qf3 {[%clk 0:02:34.5]} 13... b5 {[%clk
0:02:09.1]} 14. Qh3 {[%clk 0:02:29]} 14... c4 {[%clk 0:01:25.5]} 15. Bf5 {[%clk
0:02:19.1]} 15... Nb6 {[%clk 0:01:18]} 16. g4 {[%clk 0:02:12.8]} 16... Bc8
{[%clk 0:01:09.6]} 17. g5 {[%clk 0:02:08.2]} 17... Bxf5 {[%clk 0:01:09.4]} 18.
Qxf5 {[%clk 0:02:09.1]} 18... Ne8 {[%clk 0:00:56.8]} 19. Rf3 {[%clk 0:01:57.8]}
19... g6 {[%clk 0:00:55.5]} 20. Qh3 {[%clk 0:01:53.3]} 20... Bxe5 {[%clk
0:00:47.2]} 21. dxe5 {[%clk 0:01:54.2]} 21... Ng7 {[%clk 0:00:37.5]} 22. Ne2
{[%clk 0:01:47.2]} 22... Nd7 {[%clk 0:00:30.5]} 23. Nd4 {[%clk 0:01:43.9]} 23...
Nc5 {[%clk 0:00:27.6]} 24. Bb4 {[%clk 0:01:37.5]} 24... Nd3 {[%clk 0:00:26.4]}
25. Bxf8 {[%clk 0:01:33.8]} 25... Qxf8 {[%clk 0:00:26.1]} 26. Rcf1 {[%clk
0:01:20.3]} 26... Qe7 {[%clk 0:00:22]} 27. Qh6 {[%clk 0:01:04.5]} 27... Qf8
{[%clk 0:00:12.6]} 28. Rh3 {[%clk 0:00:58]} 28... Nh5 {[%clk 0:00:12.8]} 29.
Rxh5 {[%clk 0:00:53.5]} 29... gxh5 {[%clk 0:00:13.2]} 30. Qxh5 {[%clk 0:00:39]}
30... Nxb2 {[%clk 0:00:12.2]} 31. Nf5 {[%clk 0:00:32.9]} 31... Nd3 {[%clk
0:00:08.8]} 32. Nh6+ {[%clk 0:00:30.6]} 32... Kg7 {[%clk 0:00:09]} 33. f5 {[%clk
0:00:22.7]} 33... Ra7 {[%clk 0:00:04.8]} 34. f6+ {[%clk 0:00:20.7]} 34... Kh8
{[%clk 0:00:05.1]} 35. Nxf7+ {[%clk 0:00:12.4]} 35... Rxf7 {[%clk 0:00:02.5]}
36. e6 {[%clk 0:00:12]} 36... Qc5 {[%clk 0:00:02.6]} 37. exf7 {[%clk 0:00:05.7]}
37... Qxe3+ {[%clk 0:00:02.7]} 38. Kh1 {[%clk 0:00:05.7]} 38... Qe4+ {[%clk
0:00:02.5]} 39. Qf3 {[%clk 0:00:05.7]} 39... Nf2+ {[%clk 0:00:02.7]} 40. Rxf2
{[%clk 0:00:04.7]} 40... Qe1+ {[%clk 0:00:02.5]} 41. Rf1 {[%clk 0:00:04.8]} 1-0

[Event "*** SCC Grand Prix: Titled Tuesday Blitz"]
[Site "Chess.com"]
[Date "2020.08.04"]
[Round "3"]
[White "FMOlexandrProhorov"]
[Black "anpospan"]
[Result "0-1"]
[WhiteElo "2104"]
[BlackElo "2324"]
[TimeControl "180+1"]
[EndTime "14:13:12 PDT"]
[Termination "anpospan won by resignation"]

1. Nf3 {[%clk 0:02:54.1]} 1... c5 {[%clk 0:02:59]} 2. e4 {[%clk 0:02:53.5]} 2...
Nc6 {[%clk 0:02:56.9]} 3. c3 {[%clk 0:02:53.8]} 3... g6 {[%clk 0:02:55.2]} 4. d4
{[%clk 0:02:52.6]} 4... cxd4 {[%clk 0:02:54.3]} 5. cxd4 {[%clk 0:02:53.5]} 5...
Bg7 {[%clk 0:02:54.3]} 6. Nc3 {[%clk 0:02:53.7]} 6... d6 {[%clk 0:02:54.4]} 7.
h3 {[%clk 0:02:54.2]} 7... Nf6 {[%clk 0:02:54.1]} 8. Bd3 {[%clk 0:02:54.3]} 8...
O-O {[%clk 0:02:53.7]} 9. O-O {[%clk 0:02:54.6]} 9... a6 {[%clk 0:02:53.9]} 10.
Re1 {[%clk 0:02:54.9]} 10... e5 {[%clk 0:02:50.7]} 11. dxe5 {[%clk 0:02:53.3]}
11... Nxe5 {[%clk 0:02:47.1]} 12. Nxe5 {[%clk 0:02:51.4]} 12... dxe5 {[%clk
0:02:47]} 13. Bg5 {[%clk 0:02:52.1]} 13... Be6 {[%clk 0:02:45.8]} 14. Qe2 {[%clk
0:02:49.5]} 14... b5 {[%clk 0:02:43.7]} 15. Red1 {[%clk 0:02:49.1]} 15... Qb6
{[%clk 0:02:39.1]} 16. Be3 {[%clk 0:02:43.2]} 16... Qb7 {[%clk 0:02:36.6]} 17.
Rac1 {[%clk 0:02:42.2]} 17... Rac8 {[%clk 0:02:35.6]} 18. g4 {[%clk 0:02:11.3]}
18... Bc4 {[%clk 0:02:29.6]} 19. f3 {[%clk 0:02:04.1]} 19... Rfd8 {[%clk
0:02:14.2]} 20. b3 {[%clk 0:01:54]} 20... Bxd3 {[%clk 0:02:12.5]} 21. Rxd3
{[%clk 0:01:54.9]} 21... Rxd3 {[%clk 0:02:06.8]} 22. Qxd3 {[%clk 0:01:55.8]}
22... Bf8 {[%clk 0:01:59.5]} 23. Rd1 {[%clk 0:01:51.5]} 23... Be7 {[%clk
0:01:49]} 24. Bg5 {[%clk 0:01:49.5]} 24... Rd8 {[%clk 0:01:41.6]} 25. Qe3 {[%clk
0:01:44.8]} 25... Rxd1+ {[%clk 0:01:39.4]} 26. Nxd1 {[%clk 0:01:45.7]} 26... Qd7
{[%clk 0:01:35]} 27. Nc3 {[%clk 0:01:42.1]} 27... b4 {[%clk 0:01:32.4]} 28. Na4
{[%clk 0:01:27.1]} 28... Qd1+ {[%clk 0:01:28.2]} 29. Kg2 {[%clk 0:01:27]} 29...
Qc2+ {[%clk 0:01:25.5]} 30. Qf2 {[%clk 0:01:27.2]} 30... Qd1 {[%clk 0:01:10.9]}
31. h4 {[%clk 0:01:11.2]} 31... h5 {[%clk 0:01:02.2]} 32. gxh5 {[%clk
0:01:08.8]} 32... gxh5 {[%clk 0:00:59.6]} 33. Nb6 {[%clk 0:01:08.6]} 33... Kh7
{[%clk 0:00:55.3]} 34. Bxf6 {[%clk 0:01:04.4]} 34... Bxf6 {[%clk 0:00:54.5]} 35.
Nd5 {[%clk 0:01:04.3]} 35... Bg7 {[%clk 0:00:49.6]} 36. f4 {[%clk 0:01:03.1]}
36... Qg4+ {[%clk 0:00:42.9]} 37. Qg3 {[%clk 0:01:03.4]} 37... Qe2+ {[%clk
0:00:40.3]} 38. Kh3 {[%clk 0:00:59.8]} 38... Qxe4 {[%clk 0:00:39.9]} 39. Ne7
{[%clk 0:00:47.9]} 39... exf4 {[%clk 0:00:39.7]} 40. Qg5 {[%clk 0:00:47.2]}
40... Qe3+ {[%clk 0:00:27.7]} 41. Kh2 {[%clk 0:00:45.3]} 41... Qe2+ {[%clk
0:00:27.2]} 42. Kh3 {[%clk 0:00:45.4]} 42... Qf3+ {[%clk 0:00:24]} 43. Kh2
{[%clk 0:00:45.3]} 43... Qg4 {[%clk 0:00:22.4]} 44. Qc5 {[%clk 0:00:26.3]} 44...
Qxh4+ {[%clk 0:00:22]} 45. Kg2 {[%clk 0:00:27.2]} 45... Qg4+ {[%clk 0:00:22.1]}
46. Kh2 {[%clk 0:00:27.2]} 46... f3 {[%clk 0:00:22.1]} 47. Qc2+ {[%clk
0:00:26.2]} 47... Kh8 {[%clk 0:00:19]} 48. Qc8+ {[%clk 0:00:25.8]} 48... Qxc8
{[%clk 0:00:18.3]} 49. Nxc8 {[%clk 0:00:25.9]} 49... Be5+ {[%clk 0:00:17.6]} 50.
Kg1 {[%clk 0:00:25.4]} 50... h4 {[%clk 0:00:17]} 0-1